bitfinex/quotes_BTCUSD_20240101
["timestamp","ask_amount","ask_price","bid_price","bid_amount"]
[1704137581258,0.10859212,43391.0,43390.0,4.89527536]
[1704137581490,0.76951712,43391.0,43390.0,4.89527536]
[1704137581932,0.00295888,43375.0,43373.0,0.08328]
[1704137582152,0.00295888,43375.0,43370.0,0.21407191]
[1704137582153,0.00923443,43371.0,43370.0,0.21407191]
[1704137583033,0.00923443,43372.0,43371.0,0.00064231]
[1704137583248,0.0447,43380.0,43371.0,0.00064231]
[1704137583249,0.00295888,43377.0,43376.0,0.00064231]
[1704137583482,0.00295888,43379.0,43378.0,0.00064231]
[1704137583710,0.00295888,43379.0,43378.0,0.23385942]
[1704137584116,0.05295888,43388.0,43387.0,0.00064231]
[1704137584345,0.00295888,43388.0,43387.0,0.23385942]
[1704137585036,0.00295888,43388.0,43387.0,0.31503942]
[1704137585251,0.004,43391.0,43390.0,0.00064231]
[1704137585467,0.004,43391.0,43390.0,0.23385942]
[1704137585685,0.00295888,43392.0,43390.0,0.20284902]
[1704137585903,0.00295888,43392.0,43390.0,0.27994902]
[1704137586115,0.00295888,43392.0,43391.0,0.07332]
[1704137586356,0.00923443,43392.0,43391.0,0.30630211]
[1704137586564,0.00923443,43392.0,43391.0,0.23321711]
[1704137586778,0.00923443,43392.0,43382.0,0.18330445]
[1704137586779,0.00923443,43392.0,43388.0,0.04842]
[1704137586989,3.2591297,43400.0,43383.0,0.06936]
[1704137586990,0.00923443,43389.0,43383.0,0.06936]
[1704137587414,0.00295888,43385.0,43382.0,0.1854]
[1704137587624,0.00295888,43385.0,43384.0,0.08598]
[1704137588030,0.00295888,43385.0,43383.0,0.274793]
[1704137588249,0.00295888,43385.0,43384.0,0.08172]
[1704137588664,0.00295888,43385.0,43384.0,0.31493711]
[1704137589305,0.00295888,43385.0,43384.0,0.31704428]
[1704137589935,0.00295888,43385.0,43384.0,0.33504428]
[1704137590154,0.00295888,43385.0,43384.0,0.26921711]
[1704137590155,0.01023443,43385.0,43384.0,0.26921711]
[1704137590362,0.001,43385.0,43384.0,0.56110396]
[1704137590567,0.001,43385.0,43384.0,1.51286853]
[1704137590986,0.001,43385.0,43384.0,1.65750853]
[1704137591189,0.00295888,43394.0,43387.0,0.09372445]
[1704137591398,0.00295888,43394.0,43390.0,0.46086644]
[1704137591602,0.00295888,43394.0,43391.0,0.53321711]
[1704137591818,3.2591297,43400.0,43393.0,0.45911712]
[1704137591819,0.00295888,43398.0,43393.0,0.45911712]
[1704137592061,3.2591297,43400.0,43398.0,0.460843]
[1704137592259,3.2591297,43400.0,43393.0,0.23321711]
[1704137592466,3.2591297,43400.0,43394.0,0.5177]
[1704137592681,3.2591297,43400.0,43399.0,0.18636]
[1704137592887,3.2591297,43400.0,43398.0,0.460842]
[1704137593103,3.2591297,43400.0,43394.0,0.53054]
[1704137593104,3.2591297,43400.0,43399.0,0.23321711]
[1704137593303,3.2601297,43400.0,43399.0,0.31625711]
[1704137593758,3.2621297,43400.0,43399.0,1.07709711]
[1704137593959,3.2601297,43400.0,43399.0,1.07709711]
[1704137594390,3.2621297,43400.0,43399.0,0.79509711]
[1704137594597,3.2591297,43400.0,43399.0,0.77709711]
[1704137594806,3.2601297,43400.0,43399.0,0.77709711]
[1704137595231,3.2591297,43400.0,43399.0,0.77709711]
[1704137595629,3.2601297,43400.0,43399.0,0.79509711]
[1704137595886,3.2601297,43400.0,43399.0,0.33425711]
[1704137596103,3.2611297,43400.0,43399.0,0.79509711]
[1704137596332,3.2591297,43400.0,43399.0,0.77709711]
[1704137596544,3.2621297,43400.0,43399.0,0.81309711]
[1704137596725,3.35679778,43400.0,43399.0,0.33425711]
[1704137596948,3.35679778,43400.0,43399.0,0.25121711]
[1704137596949,3.35479778,43400.0,43399.0,0.25121711]
[1704137597157,3.35479778,43400.0,43399.0,0.036]
[1704137597158,3.35679778,43400.0,43399.0,0.036]
[1704137597372,3.35679778,43400.0,43399.0,0.01738415]
[1704137597373,3.35479778,43400.0,43399.0,0.01738415]
[1704137597784,3.35679778,43400.0,43399.0,0.03538415]
[1704137597999,3.35579778,43400.0,43399.0,0.018]
[1704137598322,3.35679778,43400.0,43399.0,0.036]
[1704137598949,0.00295888,43392.0,43391.0,0.04951631]
[1704137599176,0.00295888,43392.0,43391.0,0.28273342]
[1704137599391,3.2601297,43400.0,43391.0,0.81049817]
[1704137599602,3.2601297,43400.0,43391.0,0.01019968]
[1704137599603,0.09466808,43392.0,43391.0,0.01019968]
[1704137599815,0.09466808,43392.0,43391.0,0.05948959]
[1704137600027,0.09466808,43392.0,43391.0,0.01019968]
[1704137600252,0.09466808,43392.0,43386.0,0.515876]
[1704137600466,0.09666808,43392.0,43391.0,0.018]
[1704137600892,0.09666808,43392.0,43391.0,0.26141679]
[1704137601956,0.09466808,43392.0,43391.0,0.01019968]
[1704137602170,0.00395888,43392.0,43391.0,0.26141679]
[1704137602381,0.00595888,43392.0,43391.0,0.78438179]
[1704137602614,0.00395888,43392.0,43391.0,0.78438179]
[1704137603017,0.00595888,43392.0,43391.0,0.80238179]
[1704137603243,0.00595888,43392.0,43391.0,0.74034179]
[1704137603455,0.00595888,43392.0,43391.0,0.79164179]
[1704137603892,0.003,43392.0,43391.0,1.75982679]
[1704137604099,3.2591297,43400.0,43393.0,0.0082908]
[1704137604308,3.2591297,43400.0,43399.0,0.46084]
[1704137604542,3.2591297,43400.0,43399.0,0.69405711]
[1704137604988,3.2591297,43400.0,43399.0,0.90669711]
[1704137605256,3.2591297,43400.0,43399.0,1.20669711]
[1704137605447,3.1891297,43400.0,43399.0,1.22969711]
[1704137605695,3.1891297,43400.0,43399.0,1.20669711]
[1704137605899,3.1891297,43400.0,43399.0,1.22469711]
[1704137606115,3.1891297,43400.0,43399.0,1.24269711]
[1704137606326,3.1891297,43400.0,43399.0,1.70853711]
[1704137606766,3.1891297,43400.0,43399.0,1.93644903]
[1704137606984,3.1891297,43400.0,43399.0,2.02992903]
[1704137607187,3.1891297,43400.0,43399.0,2.04792903]
[1704137607373,1.8185167,43400.0,43399.0,2.60876903]
[1704137607585,1.4116187,43400.0,43399.0,2.79570903]
[1704137607836,1.1166187,43400.0,43399.0,2.90699588]
[1704137608065,0.00027704,43406.0,43405.0,0.51533192]
[1704137608279,0.00027704,43406.0,43405.0,1.16483588]
[1704137608500,0.00027704,43406.0,43405.0,1.41659588]
[1704137608718,0.00027704,43406.0,43405.0,1.56053588]
[1704137609153,0.00027704,43406.0,43405.0,1.56853588]
[1704137609374,0.00027704,43406.0,43405.0,0.87826396]
[1704137609584,0.00027704,43406.0,43405.0,0.89626396]
[1704137609752,0.00027704,43406.0,43405.0,0.91365884]
[1704137609967,0.00027704,43406.0,43405.0,1.52399076]
[1704137610170,0.00027704,43406.0,43405.0,1.68233076]
[1704137610401,0.00027704,43406.0,43405.0,1.70033076]
[1704137610792,0.00027704,43406.0,43405.0,1.68233076]
[1704137611209,0.00027704,43406.0,43405.0,0.018]
[1704137611210,0.09494512,43406.0,43405.0,0.018]
[1704137611567,0.09494512,43406.0,43401.0,0.04812]
[1704137611568,0.09466808,43402.0,43401.0,0.04812]
[1704137611745,0.00295888,43394.0,43393.0,0.07194]
[1704137611990,0.0917092,43395.0,43387.0,0.2281]
[1704137611991,0.00295888,43393.0,43392.0,0.0456]
[1704137612218,0.00295888,43393.0,43392.0,0.23321711]
[1704137612645,0.00295888,43393.0,43392.0,0.43697711]
[1704137612855,0.09466808,43393.0,43392.0,0.23321711]
[1704137613504,0.00295888,43386.0,43385.0,0.04984616]
[1704137613719,0.09466808,43386.0,43385.0,0.04984616]
[1704137613929,0.09466808,43386.0,43385.0,0.01021744]
[1704137614136,0.00295888,43379.0,43377.0,0.04942413]
[1704137614357,0.00295888,43379.0,43378.0,0.23321711]
[1704137614567,0.00295888,43379.0,43378.0,0.29969711]
[1704137614797,0.09466808,43379.0,43378.0,0.24351182]
[1704137615631,0.760938,43390.0,43378.0,0.26251182]
[1704137615632,0.00295888,43381.0,43378.0,0.26251182]
[1704137615880,0.00295888,43380.0,43378.0,0.35436056]
[1704137616136,0.00295888,43382.0,43378.0,0.33636056]
[1704137616383,0.6979,43396.0,43381.0,0.23321711]
[1704137616384,0.00295888,43384.0,43381.0,0.23321711]
[1704137616628,0.00295888,43384.0,43379.0,0.18582]
[1704137616629,0.00295888,43389.0,43383.0,0.23321711]
[1704137616883,0.1979,43396.0,43383.0,0.23321711]
[1704137616884,0.00295888,43384.0,43383.0,0.23321711]
[1704137617150,0.00295888,43387.0,43384.0,0.08785823]
[1704137617399,0.00295888,43387.0,43383.0,0.23321711]
[1704137617400,0.00295888,43385.0,43383.0,0.08301295]
[1704137617637,0.00295888,43385.0,43381.0,0.3]
[1704137617861,0.00295888,43385.0,43383.0,0.018]
[1704137618073,0.00295888,43389.0,43384.0,0.29921711]
[1704137618281,0.00295888,43389.0,43387.0,0.23321711]
[1704137618939,0.00295888,43389.0,43388.0,0.06378]
[1704137619153,0.00295888,43389.0,43388.0,0.29699711]
[1704137619944,0.15,43404.0,43393.0,0.0082908]
[1704137619945,0.05,43404.0,43393.0,0.0082908]
[1704137620136,0.05,43404.0,43399.0,0.23321711]
[1704137620335,0.00295888,43405.0,43399.0,0.32650396]
[1704137620560,0.00323592,43406.0,43400.0,0.3]
[1704137620768,0.00027704,43406.0,43401.0,0.23321711]
[1704137621088,0.00027704,43406.0,43405.0,0.23321711]
[1704137621510,0.00027704,43406.0,43405.0,0.53321711]
[1704137621675,0.00027704,43406.0,43405.0,0.80657711]
[1704137622285,0.00027704,43406.0,43405.0,0.82457711]
[1704137622497,0.00027704,43406.0,43405.0,0.80657711]
[1704137622643,0.00027704,43406.0,43400.0,0.01]
[1704137622644,0.09466808,43397.0,43396.0,0.049617]
[1704137622855,0.09466808,43397.0,43396.0,0.32909411]
[1704137623105,0.10027704,43406.0,43393.0,0.005]
[1704137623106,0.09466808,43394.0,43393.0,0.005]
[1704137623318,0.09466808,43394.0,43393.0,0.23321711]
[1704137623925,0.460849,43399.0,43388.0,0.04972717]
[1704137623926,0.09466808,43389.0,43388.0,0.04972717]
[1704137624127,0.09466808,43389.0,43388.0,0.28294428]
[1704137624360,0.09466808,43389.0,43388.0,0.23321711]
[1704137624770,0.09466808,43389.0,43380.0,0.07398]
[1704137624771,0.09466808,43383.0,43382.0,0.07356]
[1704137624998,0.09466808,43383.0,43382.0,0.23321711]
[1704137625196,0.09466808,43383.0,43382.0,0.24141771]
[1704137625397,0.09466808,43383.0,43382.0,0.30735771]
[1704137626482,0.09466808,43383.0,43382.0,0.30675971]
[1704137626897,0.09466808,43383.0,43382.0,0.32575971]
[1704137627109,0.09466808,43383.0,43382.0,0.34375971]
[1704137627332,0.09466808,43383.0,43382.0,0.32475971]
[1704137627542,0.09466808,43383.0,43382.0,0.27781971]
[1704137627950,0.09466808,43383.0,43382.0,0.24081971]
[1704137628160,0.09466808,43383.0,43382.0,0.25881971]
[1704137628365,0.09466808,43383.0,43382.0,0.0272006]
[1704137628778,0.09466808,43383.0,43382.0,0.0452006]
[1704137628987,0.09466808,43383.0,43382.0,0.0272006]
[1704137629191,0.09466808,43383.0,43382.0,0.019]
[1704137629403,0.09466808,43383.0,43382.0,0.0272006]
[1704137629404,0.29466808,43383.0,43382.0,0.0272006]
[1704137629616,0.09466808,43375.0,43374.0,0.04945455]
[1704137629820,0.09466808,43375.0,43374.0,0.28267166]
[1704137630028,0.09466808,43372.0,43365.0,0.0837]
[1704137630244,0.09466808,43372.0,43366.0,0.04939822]
[1704137630452,0.09466808,43371.0,43370.0,0.30637291]
[1704137630660,0.09466808,43371.0,43370.0,0.21407191]
[1704137631336,0.09466808,43371.0,43370.0,0.23207191]
[1704137631545,0.09466808,43371.0,43370.0,0.25107191]
[1704137631755,0.09466808,43371.0,43370.0,0.23207191]
[1704137632191,0.09466808,43371.0,43370.0,0.25107191]
[1704137632619,0.09466808,43371.0,43370.0,0.23307191]
[1704137632833,0.09466808,43371.0,43370.0,0.24707191]
[1704137633264,0.09466808,43371.0,43370.0,0.22807191]
[1704137633709,0.09466808,43371.0,43370.0,0.24407191]
[1704137634772,0.29466808,43371.0,43370.0,0.24407191]
[1704137635637,0.29466808,43371.0,43370.0,0.23007191]
[1704137636059,0.29566808,43371.0,43370.0,0.23007191]
[1704137636527,0.29466808,43371.0,43370.0,0.23007191]
[1704137636753,0.29566808,43371.0,43370.0,0.23007191]
[1704137637027,0.29566808,43371.0,43370.0,0.21407191]
[1704137637028,0.09566808,43371.0,43370.0,0.21407191]
[1704137638609,0.09466808,43371.0,43370.0,0.21407191]
[1704137638825,0.09566808,43371.0,43370.0,0.21407191]
[1704137639279,0.09466808,43371.0,43370.0,0.21407191]
[1704137639708,0.09566808,43371.0,43370.0,0.21407191]
[1704137640139,0.09466808,43371.0,43370.0,0.27647191]
[1704137640348,0.09466808,43371.0,43370.0,0.28647191]
[1704137640827,0.09466808,43371.0,43370.0,0.28047191]
[1704137641042,0.09466808,43371.0,43370.0,0.29874411]
[1704137641258,0.09466808,43371.0,43370.0,0.28574411]
[1704137641703,0.09466808,43371.0,43370.0,0.22334411]
[1704137641925,0.09466808,43371.0,43370.0,0.51002122]
[1704137642145,0.09466808,43371.0,43370.0,0.46856122]
[1704137642350,0.09466808,43371.0,43370.0,0.48156122]
[1704137642991,0.09466808,43371.0,43370.0,0.53274122]
[1704137643214,0.09466808,43371.0,43370.0,0.51674122]
[1704137643672,0.09466808,43371.0,43370.0,0.52274122]
[1704137643887,0.09466808,43371.0,43370.0,0.50374122]
[1704137644117,0.09466808,43371.0,43370.0,0.52174122]
[1704137644812,0.09466808,43371.0,43370.0,0.47056122]
[1704137645032,0.09466808,43371.0,43370.0,0.45256122]
[1704137645266,0.09466808,43371.0,43370.0,0.47056122]
[1704137645722,0.09466808,43371.0,43370.0,0.48956122]
[1704137646404,0.09466808,43371.0,43370.0,0.47056122]
[1704137646844,0.09472808,43371.0,43370.0,0.47056122]
[1704137647287,0.09472808,43371.0,43370.0,0.48956122]
[1704137647502,0.29472808,43371.0,43370.0,0.25634411]
[1704137647714,0.09472808,43371.0,43370.0,0.25634411]
[1704137647931,0.09472808,43371.0,43370.0,0.54398122]
[1704137648568,0.09472808,43371.0,43370.0,0.52498122]
[1704137648814,6e-05,43371.0,43370.0,0.66112122]
[1704137649014,6e-05,43371.0,43370.0,0.88084122]
[1704137649458,6e-05,43371.0,43370.0,0.95636122]
[1704137649676,6e-05,43371.0,43370.0,0.97710959]
[1704137650127,6e-05,43371.0,43370.0,1.05139644]
[1704137650344,6e-05,43371.0,43370.0,1.27972836]
[1704137650575,6e-05,43371.0,43370.0,1.33816836]
[1704137650805,0.04956,43399.0,43381.0,0.01]
[1704137651010,0.00027704,43406.0,43388.0,0.01]
[1704137651249,0.00027704,43406.0,43388.0,0.33650396]
[1704137651461,0.00295888,43392.0,43389.0,0.01]
[1704137651654,0.00295888,43392.0,43390.0,0.54380396]
[1704137651902,0.00295888,43392.0,43390.0,0.46073306]
[1704137652332,0.00295888,43392.0,43391.0,0.1824]
[1704137652546,0.00295888,43392.0,43391.0,0.41561711]
[1704137652728,0.00295888,43392.0,43391.0,0.42582203]
[1704137653166,0.00295888,43395.0,43392.0,0.01]
[1704137653406,0.00027704,43406.0,43402.0,0.1082908]
[1704137653635,0.00027704,43406.0,43405.0,0.24321711]
[1704137654060,0.00027704,43406.0,43405.0,1.07403711]
[1704137654289,0.00027704,43406.0,43405.0,1.25097711]
[1704137654498,0.00027704,43406.0,43405.0,1.25033442]
[1704137654915,0.00027704,43406.0,43405.0,1.26833442]
[1704137655354,0.00027704,43406.0,43405.0,1.47366634]
[1704137655608,0.00027704,43406.0,43405.0,1.49666634]
[1704137655825,0.00027704,43406.0,43405.0,1.60795319]
[1704137656476,0.00027704,43406.0,43405.0,1.58995319]
[1704137656708,0.00027704,43406.0,43405.0,1.60795319]
[1704137656975,0.00027704,43406.0,43405.0,1.51466634]
[1704137657218,0.00027704,43406.0,43405.0,1.26833442]
[1704137657430,0.00027704,43406.0,43405.0,1.28576932]
[1704137658497,0.00027704,43406.0,43405.0,1.26776932]
[1704137658907,0.00027704,43406.0,43405.0,1.28576932]
[1704137659541,0.041957,43413.0,43407.0,0.01]
[1704137659752,0.041957,43413.0,43408.0,0.23321711]
[1704137659962,0.041957,43413.0,43409.0,0.3]
[1704137660187,0.041957,43413.0,43410.0,0.23321711]
[1704137660392,0.041957,43413.0,43410.0,0.46181711]
[1704137660603,0.041957,43415.0,43411.0,0.21168]
[1704137660834,0.041957,43415.0,43412.0,0.23321711]
[1704137661039,0.041957,43415.0,43412.0,0.23257247]
[1704137661257,0.041957,43414.0,43413.0,0.19296]
[1704137661466,0.041957,43414.0,43413.0,0.42617711]
[1704137661954,0.041957,43414.0,43413.0,0.32969711]
[1704137662154,0.041957,43414.0,43413.0,0.30695711]
[1704137662840,0.041957,43414.0,43413.0,0.32595711]
[1704137663063,0.041957,43416.0,43413.0,0.48369711]
[1704137663285,0.041957,43416.0,43414.0,0.23321711]
[1704137663527,0.0218753,43417.0,43414.0,0.23321711]
[1704137663764,0.0218753,43417.0,43414.0,0.46109711]
[1704137663981,0.0218753,43417.0,43415.0,0.11664]
[1704137664198,0.0218753,43417.0,43416.0,0.23321711]
[1704137664464,0.0218753,43417.0,43416.0,0.46505711]
[1704137665162,0.0218753,43417.0,43416.0,1.19998011]
[1704137665657,0.01922092,43424.0,43423.0,0.258043]
[1704137665933,0.01922092,43424.0,43423.0,1.22426011]
[1704137666146,0.00032934,43433.0,43427.0,0.268043]
[1704137666361,0.00028008,43431.0,43429.0,0.16741544]
[1704137666576,0.00032934,43433.0,43432.0,0.26741544]
[1704137666786,0.00032934,43433.0,43432.0,0.81213255]
[1704137667010,0.00032934,43433.0,43432.0,0.91475196]
[1704137667235,0.00032934,43433.0,43432.0,1.26136955]
[1704137667460,0.00032934,43433.0,43432.0,1.41941255]
[1704137667722,0.00032934,43433.0,43432.0,0.96408401]
[1704137667934,0.00032934,43433.0,43432.0,0.97165782]
[1704137668146,0.00032934,43433.0,43432.0,1.48448397]
[1704137668376,0.00032934,43433.0,43432.0,1.11133097]
[1704137668619,0.00032934,43433.0,43432.0,1.26000153]
[1704137668846,0.00032934,43433.0,43432.0,0.92513853]
[1704137669065,0.00032934,43433.0,43416.0,0.07274629]
[1704137669066,0.04258456,43426.0,43425.0,0.07274629]
[1704137669331,0.1,43432.0,43424.0,0.04954962]
[1704137669332,0.04258456,43425.0,43424.0,0.04954962]
[1704137669584,0.04258456,43425.0,43413.0,0.41298]
[1704137669585,0.04258456,43422.0,43420.0,0.02833112]
[1704137670075,0.04258456,43422.0,43417.0,0.04909419]
[1704137670076,0.041957,43422.0,43417.0,0.04909419]
[1704137670525,0.041957,43428.0,43421.0,0.23321711]
[1704137670530,0.041957,43430.0,43422.0,0.00937244]
[1704137670767,0.041957,43430.0,43423.0,0.23321711]
[1704137671010,0.00062756,43429.0,43424.0,0.00937244]
[1704137671249,0.00062756,43429.0,43425.0,0.23321711]
[1704137671548,0.00062756,43429.0,43426.0,0.3]
[1704137671773,0.04258456,43428.0,43427.0,0.23321711]
[1704137671984,0.1,43432.0,43427.0,0.23321711]
[1704137671985,0.041957,43430.0,43427.0,0.23321711]
[1704137672197,0.24204,43429.0,43427.0,0.23321711]
[1704137672432,0.24830756,43428.0,43427.0,0.23321711]
[1704137672647,0.041957,43429.0,43427.0,0.23321711]
[1704137672648,0.22370756,43429.0,43427.0,0.23321711]
[1704137672862,0.04258456,43426.0,43425.0,0.018]
[1704137673073,0.00062756,43422.0,43421.0,0.04972919]
[1704137673297,0.26172,43426.0,43421.0,0.2829463]
[1704137673509,0.20268,43429.0,43424.0,0.23321711]
[1704137673729,0.002,43428.0,43427.0,0.018]
[1704137673940,0.041957,43428.0,43427.0,0.23321711]
[1704137674121,0.04258456,43428.0,43427.0,0.23321711]
[1704137674544,0.33430456,43428.0,43427.0,0.23321711]
[1704137675187,0.08430456,43428.0,43427.0,0.23321711]
[1704137675601,0.48734756,43428.0,43427.0,0.25221711]
[1704137675817,0.07448756,43428.0,43427.0,0.25221711]
[1704137676032,0.00262756,43428.0,43427.0,0.27021711]
[1704137676276,0.00262756,43428.0,43427.0,0.019]
[1704137676277,0.09152756,43428.0,43427.0,0.019]
[1704137676517,0.00262756,43428.0,43427.0,0.018]
[1704137676720,0.07388756,43428.0,43421.0,0.04929128]
[1704137676953,0.00062756,43426.0,43425.0,0.09219]
[1704137677357,0.00062756,43426.0,43419.0,0.2281]
[1704137677358,0.00062756,43419.0,43398.0,0.2]
[1704137677623,0.00062756,43419.0,43394.0,0.1]
[1704137677624,0.56132956,43412.0,43394.0,0.1]
[1704137677888,0.00062756,43402.0,43390.0,0.20937244]
[1704137678140,0.00062756,43402.0,43393.0,0.2299]
[1704137678354,0.00062756,43402.0,43398.0,0.02715818]
[1704137678565,0.00062756,43402.0,43388.0,0.00937244]
[1704137678832,0.00062756,43402.0,43397.0,0.02806262]
[1704137679067,0.07760756,43402.0,43400.0,0.05]
[1704137679303,0.07760756,43402.0,43386.0,0.1]
[1704137679304,0.1,43399.0,43391.0,0.06090884]
[1704137679531,0.1,43399.0,43392.0,0.23321711]
[1704137679532,0.00062756,43394.0,43392.0,0.23321711]
[1704137680081,0.00062756,43394.0,43393.0,0.092247]
[1704137680353,0.00062756,43394.0,43393.0,0.32546411]
[1704137681160,0.00262756,43394.0,43393.0,0.32546411]
[1704137682417,0.06186,43399.0,43393.0,0.34346411]
[1704137682639,0.06186,43399.0,43393.0,0.128247]
[1704137682640,0.00262756,43394.0,43393.0,0.128247]
[1704137683121,0.002,43394.0,43393.0,0.128247]
[1704137683852,0.00062756,43398.0,43393.0,0.092247]
[1704137684090,0.05246756,43398.0,43393.0,0.110247]
[1704137684324,0.0471,43397.0,43393.0,0.128247]
[1704137684557,0.00062756,43398.0,43393.0,0.128247]
[1704137684786,0.04908,43397.0,43393.0,0.110247]
[1704137685015,0.00062756,43397.0,43393.0,0.128247]
[1704137685217,0.002,43399.0,43393.0,0.128247]
[1704137685218,0.00062756,43398.0,43393.0,0.128247]
[1704137685455,0.00062756,43398.0,43393.0,0.092247]
[1704137685694,0.00062756,43398.0,43393.0,0.128247]
[1704137685930,0.002,43394.0,43393.0,0.128247]
[1704137686184,0.00062756,43398.0,43393.0,0.110247]
[1704137686393,0.04756756,43398.0,43394.0,0.23321711]
[1704137686601,0.00062756,43398.0,43394.0,0.23298211]
[1704137686860,0.00262756,43398.0,43394.0,0.23274711]
[1704137687065,0.0501,43397.0,43394.0,0.23274711]
[1704137687275,0.00062756,43398.0,43394.0,0.23274711]
[1704137687499,0.00262756,43398.0,43394.0,0.23274711]
[1704137688335,0.00062756,43397.0,43394.0,0.23274711]
[1704137688544,0.00262756,43398.0,43394.0,0.23251087]
[1704137688784,0.00062756,43397.0,43394.0,0.23251087]
[1704137689004,0.00062756,43397.0,43394.0,0.27051087]
[1704137689194,0.00062756,43398.0,43394.0,0.25151087]
[1704137689630,0.00062756,43398.0,43394.0,0.27051087]
[1704137689848,0.00062756,43398.0,43394.0,0.25151087]
[1704137690056,0.00062756,43398.0,43394.0,0.27051087]
[1704137690208,0.00062756,43397.0,43394.0,0.27051087]
[1704137690415,0.00062756,43397.0,43394.0,0.23251087]
[1704137690654,0.05042756,43397.0,43394.0,0.27051087]
[1704137690854,0.00062756,43397.0,43394.0,0.27051087]
[1704137691063,0.00062756,43398.0,43394.0,0.25151087]
[1704137691437,0.00062756,43397.0,43394.0,0.25151087]
[1704137692084,0.00062756,43395.0,43394.0,0.25151087]
[1704137692296,0.00062756,43395.0,43394.0,0.27051087]
[1704137692498,0.00062756,43395.0,43394.0,0.25151087]
[1704137692907,0.00062756,43395.0,43394.0,0.27051087]
[1704137693122,0.00062756,43395.0,43394.0,0.25151087]
[1704137693542,0.00062756,43397.0,43394.0,0.27051087]
[1704137693955,0.0768,43401.0,43394.0,0.27051087]
[1704137694165,0.00062756,43398.0,43394.0,0.27051087]
[1704137694415,0.00062756,43398.0,43394.0,0.25151087]
[1704137694616,0.00062756,43397.0,43394.0,0.25151087]
[1704137694821,0.00062756,43397.0,43394.0,0.27051087]
[1704137695052,0.0499821,43402.0,43396.0,0.33321711]
[1704137695294,0.0499821,43402.0,43398.0,0.23321711]
[1704137695495,0.07404,43408.0,43398.0,0.23321711]
[1704137696397,0.12377538,43408.0,43398.0,0.25121711]
[1704137696627,0.12377538,43408.0,43398.0,0.23321711]
[1704137696876,0.07692,43407.0,43398.0,0.25221711]
[1704137697578,0.07692,43407.0,43400.0,0.00937244]
[1704137697579,0.00062756,43405.0,43400.0,0.00937244]
[1704137697791,0.00062756,43405.0,43401.0,0.23321711]
[1704137697992,0.07692,43407.0,43402.0,0.3]
[1704137698214,0.00062756,43405.0,43403.0,0.23321711]
[1704137699292,0.00062756,43405.0,43404.0,0.3]
[1704137699522,0.00062756,43405.0,43404.0,0.53321711]
[1704137699746,0.00062756,43400.0,43398.0,0.018]
[1704137699980,0.00062756,43400.0,43399.0,0.23321711]
[1704137700201,0.00062756,43400.0,43399.0,0.53321711]
[1704137700415,0.00062756,43400.0,43399.0,0.23321711]
[1704137701290,0.00062756,43400.0,43399.0,0.25221711]
[1704137702111,0.00062756,43400.0,43399.0,0.27121711]
[1704137707522,0.00062756,43400.0,43399.0,0.038]
[1704137708143,0.19022756,43400.0,43399.0,0.038]
[1704137708362,0.19022756,43400.0,43399.0,0.019]
[1704137708738,0.19022756,43400.0,43399.0,0.038]
[1704137708941,0.39022756,43400.0,43399.0,0.019]
[1704137709315,0.85105656,43400.0,43399.0,0.012]
[1704137709670,1.08521656,43400.0,43399.0,0.012]
[1704137709888,1.18337656,43400.0,43399.0,0.031]
[1704137710103,1.04949656,43400.0,43399.0,0.031]
[1704137710329,1.04949656,43400.0,43399.0,0.012]
[1704137710573,0.98064467,43400.0,43399.0,0.026]
[1704137710800,1.44147367,43400.0,43399.0,0.026]
[1704137711007,1.44147367,43400.0,43399.0,0.012]
[1704137711222,1.44147367,43400.0,43389.0,0.1]
[1704137711223,0.00062756,43392.0,43389.0,0.1]
[1704137711446,0.20062756,43392.0,43389.0,0.1]
[1704137711665,0.18410756,43392.0,43389.0,0.1]
[1704137711870,0.05912756,43392.0,43389.0,0.1]
[1704137712117,0.00062756,43392.0,43389.0,0.1]
[1704137712324,0.00062756,43392.0,43389.0,0.05]
[1704137713464,0.07962,43395.0,43391.0,0.24412595]
[1704137713688,0.00062756,43396.0,43392.0,0.23321711]
[1704137713824,0.06084,43397.0,43392.0,0.23321711]
[1704137714053,0.05508,43399.0,43392.0,0.23321711]
[1704137714523,0.05508,43399.0,43393.0,0.3]
[1704137714689,0.00062756,43396.0,43394.0,0.23321711]
[1704137716307,0.05058669,43400.0,43394.0,0.23321711]
[1704137716524,0.04995913,43400.0,43397.0,0.23321711]
[1704137716739,0.04995913,43400.0,43398.0,0.3]
[1704137716952,0.04995913,43400.0,43399.0,0.23321711]
[1704137717225,0.00062756,43400.0,43399.0,0.23321711]
[1704137718420,0.00062756,43400.0,43399.0,0.27121711]
[1704137718625,0.00062756,43400.0,43399.0,0.25221711]
[1704137719486,0.00062756,43400.0,43399.0,0.27121711]
[1704137719707,0.00062756,43400.0,43399.0,0.25221711]
[1704137720146,0.00062756,43400.0,43399.0,0.27121711]
[1704137720641,0.00062756,43400.0,43399.0,0.23321711]
[1704137720891,0.00062756,43400.0,43399.0,0.27121711]
[1704137722080,0.07566,43405.0,43399.0,0.27121711]
[1704137722341,0.04716,43406.0,43399.0,0.27121711]
[1704137722541,0.06714,43408.0,43399.0,0.27121711]
[1704137722748,0.04866,43404.0,43399.0,0.27121711]
[1704137722952,0.05652,43405.0,43399.0,0.25221711]
[1704137723162,0.0717,43407.0,43399.0,0.25221711]
[1704137723378,0.0453,43403.0,43399.0,0.27121711]
[1704137723586,0.19288,43410.0,43399.0,0.27121711]
[1704137723587,0.05214,43404.0,43399.0,0.27121711]
[1704137723797,0.08628,43409.0,43399.0,0.25221711]
[1704137723978,0.04494,43403.0,43399.0,0.23321711]
[1704137724221,0.0804,43408.0,43399.0,0.23321711]
[1704137724440,0.0804,43408.0,43399.0,0.25121711]
[1704137724657,0.00062756,43400.0,43399.0,0.26921711]
[1704137724879,0.00062756,43400.0,43399.0,0.25121711]
[1704137725082,0.00062756,43400.0,43399.0,0.27021711]
[1704137725327,0.00062756,43400.0,43399.0,0.25121711]
[1704137725591,0.00062756,43400.0,43399.0,0.23321711]
[1704137725816,0.07128,43404.0,43399.0,0.24821711]
[1704137726271,0.04967286,43412.0,43399.0,0.26721711]
[1704137726272,0.06126,43405.0,43399.0,0.26721711]
[1704137726485,0.0696,43406.0,43399.0,0.26721711]
[1704137726696,0.0696,43406.0,43399.0,0.24821711]
[1704137726878,0.2059,43410.0,43399.0,0.23321711]
[1704137726879,0.18072,43409.0,43399.0,0.23321711]
[1704137727090,0.18072,43409.0,43399.0,0.25221711]
[1704137727297,0.06648,43405.0,43399.0,0.25221711]
[1704137727511,0.05838,43408.0,43399.0,0.25221711]
[1704137727708,0.14967286,43412.0,43399.0,0.27021711]
[1704137727709,0.04752,43411.0,43399.0,0.27021711]
[1704137727918,0.04752,43411.0,43400.0,0.2144]